bitfinex-derivatives/quotes_BTCF0:USTF0_20250121
["timestamp","ask_amount","ask_price","bid_price","bid_amount"]
[1737423871024,0.039538,101300.0,101270.0,0.400346]
[1737423871219,0.3608,101280.0,101270.0,0.039546]
[1737423871415,0.3608,101280.0,101260.0,0.41042307]
[1737423871416,0.3608,101280.0,101260.0,0.53815307]
[1737423871616,0.3608,101280.0,101260.0,0.04112621]
[1737423871821,0.400344,101280.0,101260.0,0.04112621]
[1737423872227,0.039544,101280.0,101260.0,0.04112621]
[1737423872425,0.400346,101280.0,101260.0,0.00157621]
[1737423872725,0.400346,101280.0,101260.0,0.04112721]
[1737423872924,0.3608,101280.0,101260.0,0.00157621]
[1737423873128,0.3608,101280.0,101270.0,0.039548]
[1737423873330,0.3608,101280.0,101260.0,0.04112721]
[1737423873535,0.36089092,101290.0,101280.0,0.039544]
[1737423873732,9.092e-05,101290.0,101280.0,0.039544]
[1737423874023,0.36089092,101290.0,101260.0,0.00157621]
[1737423874222,0.01312692,101290.0,101270.0,0.039546]
[1737423874931,0.01312692,101290.0,101280.0,0.039544]
[1737423875424,0.37392692,101290.0,101260.0,0.00157621]
[1737423875626,0.400348,101270.0,101260.0,0.00157621]
[1737423875823,0.40043419,101270.0,101260.0,0.00157621]
[1737423877127,8.619e-05,101270.0,101260.0,0.00157621]
[1737423877820,8.619e-05,101270.0,101260.0,0.40192821]
[1737423878023,8.619e-05,101270.0,101260.0,0.04112821]
[1737423878930,8.619e-05,101270.0,101260.0,0.00157621]
[1737423879625,8.619e-05,101270.0,101260.0,0.04112821]
[1737423881236,0.36088619,101270.0,101260.0,0.00157621]
[1737423881425,0.40043519,101270.0,101260.0,0.00157621]
[1737423882025,0.40043519,101270.0,101260.0,0.04112921]
[1737423882026,0.36088619,101270.0,101260.0,0.04112921]
[1737423882225,8.619e-05,101270.0,101260.0,0.04112921]
[1737423882531,0.89746205,101270.0,101260.0,0.00157621]
[1737423884032,0.9105859,101270.0,101260.0,0.00157621]
[1737423884227,0.039557,101250.0,101240.0,0.01316917]
[1737423884429,0.400357,101250.0,101230.0,0.039565]
[1737423884728,0.3608,101240.0,101230.0,0.039565]
[1737423884922,0.3608,101240.0,101220.0,0.327668]
[1737423885128,0.00010007,101230.0,101220.0,0.327668]
[1737423885329,0.36090007,101230.0,101210.0,0.91792]
[1737423885532,0.00010007,101230.0,101220.0,0.039569]
[1737423886033,0.00010007,101230.0,101220.0,0.400369]
[1737423886831,0.37382389,101260.0,101250.0,0.039557]
[1737423887233,0.969746,101280.0,101240.0,0.43759264]
[1737423887427,0.3608,101280.0,101250.0,0.07679264]
[1737423887734,0.08902666,101290.0,101270.0,0.07679264]
[1737423887933,0.08902666,101290.0,101260.0,0.71139264]
[1737423888128,7.323e-05,101280.0,101270.0,0.03955]
[1737423888328,0.50678106,101280.0,101260.0,0.3725508]
[1737423888528,0.50678106,101280.0,101260.0,0.039553]
[1737423888529,0.6231197,101280.0,101260.0,0.039553]
[1737423888929,0.40035,101270.0,101250.0,0.05287472]
[1737423889432,0.3608,101270.0,101260.0,0.039553]
[1737423889631,0.54632706,101280.0,101270.0,0.03955]
[1737423889836,0.50678106,101280.0,101270.0,0.03955]
[1737423890036,0.14598106,101280.0,101270.0,0.03955]
[1737423891428,7.323e-05,101280.0,101270.0,0.40035]
[1737423892030,0.36087323,101280.0,101260.0,0.2852]
[1737423892336,0.40042123,101280.0,101260.0,0.039552]
[1737423893133,0.3608,101270.0,101260.0,0.039552]
[1737423893642,0.40042123,101280.0,101260.0,0.039552]
[1737423893934,0.36087323,101280.0,101270.0,0.03955]
[1737423894135,7.323e-05,101280.0,101270.0,0.03955]
[1737423895041,0.01332326,101280.0,101270.0,0.03955]
[1737423895242,0.57911714,101280.0,101270.0,0.03955]
[1737423895637,0.20506711,101280.0,101270.0,0.03955]
[1737423896434,0.56586711,101280.0,101270.0,0.03955]
[1737423897234,0.56586711,101280.0,101270.0,0.3608]
[1737423897235,0.20506711,101280.0,101270.0,0.3608]
[1737423897437,0.20506711,101280.0,101270.0,0.03955]
[1737423898130,0.60541311,101280.0,101270.0,0.03955]
[1737423898333,0.24461311,101280.0,101260.0,0.039553]
[1737423898541,0.60541311,101280.0,101260.0,0.039553]
[1737423899137,0.24461311,101280.0,101260.0,0.039553]
[1737423899340,0.20506711,101280.0,101270.0,0.03955]
[1737423900940,0.20506711,101280.0,101270.0,0.40035]
[1737423901143,0.20506711,101280.0,101270.0,0.13829105]
[1737423901351,0.20506711,101280.0,101270.0,0.03955]
[1737423901539,0.60541311,101280.0,101260.0,0.311153]
[1737423901735,0.3608,101270.0,101260.0,0.311153]
[1737423901934,0.60541311,101280.0,101260.0,0.039553]
[1737423902141,0.51755859,101280.0,101260.0,0.039553]
[1737423902341,0.3608,101270.0,101260.0,0.039553]
[1737423902548,0.11721259,101280.0,101270.0,0.03955]
[1737423902743,0.15676059,101280.0,101260.0,0.039553]
[1737423903047,0.400351,101270.0,101250.0,0.039555]
[1737423903242,0.36088314,101260.0,101240.0,0.00148137]
[1737423903448,0.039557,101250.0,101240.0,0.00148137]
[1737423903839,0.039561,101240.0,101230.0,0.29448811]
[1737423904240,0.03964702,101240.0,101230.0,0.29448811]
[1737423904546,8.602e-05,101240.0,101230.0,0.69485311]
[1737423904846,8.602e-05,101240.0,101230.0,0.33405311]
[1737423905040,8.602e-05,101240.0,101230.0,0.400365]
[1737423905238,8.602e-05,101240.0,101230.0,0.3608]
[1737423905446,0.40044902,101240.0,101220.0,0.039568]
[1737423905844,0.40044902,101240.0,101220.0,0.09345634]
[1737423906144,0.039565,101230.0,101210.0,0.69486011]
[1737423906348,0.400365,101230.0,101210.0,0.74876065]
[1737423906548,0.039565,101230.0,101210.0,0.33406011]
[1737423907149,0.039565,101230.0,101210.0,0.38807191]
[1737423907350,0.039565,101230.0,101210.0,0.33406011]
[1737423907847,0.3608,101220.0,101210.0,0.29448811]
[1737423908146,0.53561756,101220.0,101210.0,0.29448811]
[1737423908337,0.039573,101210.0,101200.0,0.45256968]
[1737423908539,0.40045902,101210.0,101200.0,0.45256968]
[1737423909043,0.36088602,101210.0,101200.0,0.49214668]
[1737423909246,8.602e-05,101210.0,101200.0,0.85294668]
[1737423909450,0.36088602,101210.0,101200.0,0.45256968]
[1737423909842,8.602e-05,101210.0,101200.0,0.85294668]
[1737423910049,8.602e-05,101210.0,101200.0,0.50185897]
[1737423910448,0.08848994,101220.0,101200.0,1.08974323]
[1737423910645,0.26304719,101230.0,101220.0,0.17473154]
[1737423910951,0.26304719,101230.0,101220.0,0.58944392]
[1737423911354,0.26304719,101230.0,101220.0,0.45428138]
[1737423911549,0.26304719,101230.0,101220.0,0.400369]
[1737423911745,0.26304719,101230.0,101220.0,0.039569]
[1737423912551,0.26304719,101230.0,101210.0,1.20210382]
[1737423912756,0.26304719,101230.0,101220.0,0.11635106]
[1737423912949,0.26304719,101230.0,101220.0,0.47715106]
[1737423913151,0.26304719,101230.0,101220.0,0.039569]
[1737423913850,0.62384719,101230.0,101220.0,0.039569]
[1737423914052,0.26304719,101230.0,101220.0,0.039569]
[1737423914257,0.039571,101220.0,101200.0,0.50185797]
[1737423914555,0.3608,101220.0,101200.0,0.14105797]
[1737423914851,0.400373,101210.0,101200.0,0.10148197]
[1737423915858,0.3608,101210.0,101200.0,0.10148197]
[1737423916261,0.3608,101220.0,101200.0,0.10148197]
[1737423916468,0.41293657,101220.0,101200.0,0.14105797]
[1737423916652,0.37336657,101220.0,101200.0,0.14105797]
[1737423916957,0.41293657,101220.0,101200.0,0.14105797]
[1737423918162,0.400373,101210.0,101200.0,0.10148197]
[1737423919055,0.400373,101210.0,101200.0,0.1]
[1737423919860,0.039573,101210.0,101200.0,0.1]
[1737423920056,0.67598376,101220.0,101200.0,0.139576]
[1737423920868,0.400373,101210.0,101200.0,0.1]
[1737423921565,0.67598376,101220.0,101200.0,0.139575]
[1737423921766,0.11713936,101210.0,101200.0,0.139575]
[1737423921968,0.11713936,101210.0,101200.0,0.57715706]
[1737423922269,0.11713936,101210.0,101200.0,0.500375]
[1737423922870,0.47793936,101210.0,101200.0,0.1]
[1737423923060,0.51751236,101210.0,101200.0,0.1]
[1737423924162,0.11713936,101210.0,101200.0,0.139577]
[1737423924568,0.51751236,101210.0,101200.0,0.1]
[1737423928866,0.51751236,101210.0,101200.0,0.21635906]
[1737423928867,0.47793936,101210.0,101200.0,0.21635906]
[1737423929072,0.14590783,101210.0,101200.0,0.139577]
[1737423929569,0.18548083,101210.0,101200.0,0.1]
[1737423929869,0.14590783,101210.0,101200.0,0.139577]
[1737423930071,0.14590783,101210.0,101200.0,0.21635906]
[1737423930259,0.14590783,101210.0,101200.0,0.57715906]
[1737423930459,0.1750894,101220.0,101210.0,0.039573]
[1737423930659,0.1750894,101220.0,101210.0,0.47715506]
[1737423930875,0.400359,101250.0,101230.0,0.039564]
[1737423931083,0.3608,101250.0,101230.0,0.039564]
[1737423931267,0.400357,101250.0,101230.0,0.039564]
[1737423931567,0.32099724,101260.0,101250.0,0.039557]
[1737423931775,0.4377235,101270.0,101260.0,0.039553]
[1737423931970,0.4377235,101270.0,101260.0,0.47713506]
[1737423932172,0.2626341,101280.0,101270.0,0.03955]
[1737423933468,0.2626341,101280.0,101270.0,0.11633206]
[1737423933664,0.29181567,101290.0,101280.0,0.039545]
[1737423933862,0.3608,101310.0,101300.0,0.039537]
[1737423934064,0.3608,101310.0,101300.0,0.11631906]
[1737423934271,0.3608,101310.0,101300.0,0.21505036]
[1737423934673,0.3608,101310.0,101300.0,0.039537]
[1737423934868,0.039526,101330.0,101300.0,0.53631336]
[1737423935058,0.039526,101330.0,101310.0,0.039533]
[1737423935258,0.039526,101330.0,101290.0,0.43758206]
[1737423935259,0.3608,101320.0,101290.0,0.400338]
[1737423935462,0.400335,101310.0,101290.0,0.039538]
[1737423935662,0.039535,101310.0,101290.0,0.039538]
[1737423936263,0.039535,101310.0,101290.0,0.05182956]
[1737423936575,0.039535,101310.0,101290.0,0.28728066]
[1737423936964,0.039535,101310.0,101290.0,0.36406272]
[1737423937268,0.3608,101300.0,101290.0,0.2354511]
[1737423937477,0.51830646,101320.0,101290.0,0.2354511]
[1737423937772,0.039533,101310.0,101290.0,0.2354511]
[1737423937963,1.539533,101310.0,101290.0,0.2354511]
[1737423938377,0.3608,101300.0,101290.0,0.2354511]
[1737423938666,1.90089301,101310.0,101290.0,0.2354511]
[1737423938972,0.400336,101300.0,101290.0,0.2354511]
[1737423939169,1.50060001,101310.0,101290.0,0.31223316]
[1737423939375,0.95083,101320.0,101310.0,0.2354511]
[1737423939768,0.3608,101320.0,101310.0,0.2354511]
[1737423939967,0.01213738,101330.0,101310.0,0.35176416]
[1737423940164,0.3608,101320.0,101310.0,0.31223316]
[1737423940468,0.3608,101330.0,101310.0,0.2354511]
[1737423940469,0.400325,101330.0,101310.0,0.2354511]
[1737423940968,0.3608,101320.0,101310.0,0.2354511]
[1737423941167,0.400329,101320.0,101310.0,0.2354511]
[1737423942070,0.43758206,101320.0,101300.0,0.295416]
[1737423942373,0.47711406,101310.0,101300.0,0.25303196]
[1737423942574,1.04811406,101310.0,101300.0,0.25303196]
[1737423942759,0.971332,101310.0,101300.0,0.25303196]
[1737423943568,1.04811406,101310.0,101300.0,0.25303196]
[1737423944071,0.971332,101310.0,101280.0,0.039544]
[1737423944668,0.3608,101310.0,101290.0,0.03954]
[1737423944869,0.41253084,101320.0,101290.0,0.11632206]
[1737423945165,0.3608,101330.0,101310.0,0.07678206]
[1737423945369,0.3608,101330.0,101300.0,0.039535]
[1737423945574,0.3608,101310.0,101290.0,0.82299387]
[1737423945776,0.400327,101330.0,101290.0,0.76382206]
[1737423945968,0.3608,101330.0,101300.0,0.07678206]
[1737423946171,0.3608,101340.0,101320.0,0.11630906]
[1737423946365,0.29524109,101350.0,101330.0,0.11630606]
[1737423946572,0.00148108,101350.0,101330.0,0.11630606]
[1737423946766,0.36228108,101350.0,101330.0,0.47710606]
[1737423946967,0.400315,101360.0,101330.0,0.47710606]
[1737423947173,0.6241,101380.0,101360.0,0.039513]
[1737423947369,0.31545894,101380.0,101360.0,0.039513]
[1737423947567,0.04212034,101390.0,101370.0,0.47709106]
[1737423947762,0.04212034,101390.0,101370.0,0.53513887]
[1737423947763,0.04148034,101390.0,101370.0,0.53513887]
[1737423947971,0.04148034,101390.0,101380.0,0.039505]
[1737423948472,0.04,101390.0,101380.0,0.400305]
[1737423948863,0.04,101390.0,101380.0,0.49894378]
[1737423949272,0.04,101390.0,101380.0,0.400305]
[1737423949476,0.1,101400.0,101390.0,0.039501]
[1737423949676,0.1,101400.0,101390.0,0.53513287]
[1737423949979,0.1,101400.0,101390.0,0.83513287]
[1737423950179,0.00147966,101440.0,101420.0,0.039486]
[1737423950373,0.00147966,101440.0,101410.0,0.13483187]
[1737423950374,0.039486,101430.0,101410.0,0.17432387]
[1737423950979,0.039486,101430.0,101410.0,0.039492]
[1737423951164,0.3608,101430.0,101400.0,0.039497]
[1737423951369,0.039495,101410.0,101390.0,0.40178022]
[1737423951576,0.039495,101410.0,101400.0,0.04]
[1737423951765,0.400295,101410.0,101400.0,0.04]
[1737423951971,0.400295,101410.0,101370.0,0.400309]
[1737423952169,0.3608,101380.0,101370.0,0.35108771]
[1737423952376,0.039507,101380.0,101370.0,0.35108771]
[1737423952569,0.45372888,101390.0,101370.0,0.35108771]
[1737423952770,0.039507,101380.0,101370.0,0.35108771]
[1737423953278,0.039502,101390.0,101370.0,0.35108771]
[1737423953477,0.05203943,101390.0,101370.0,0.35108771]
[1737423953673,0.039505,101380.0,101370.0,0.35108771]
[1737423953868,0.400305,101380.0,101370.0,0.35108771]
[1737423954073,0.53513687,101380.0,101370.0,0.35108771]
[1737423954271,0.47332659,101380.0,101340.0,0.40180088]
[1737423954478,0.27333743,101390.0,101350.0,0.49563187]
[1737423954781,0.31284043,101390.0,101370.0,0.039509]
[1737423954981,0.31284043,101390.0,101370.0,0.17434087]
[1737423954982,0.01253743,101390.0,101370.0,0.17434087]
[1737423955197,0.5455,101400.0,101380.0,0.039505]
[1737423955478,0.5455,101400.0,101380.0,0.400305]
[1737423955785,1.50056001,101430.0,101410.0,0.039491]
[1737423955786,0.00056001,101430.0,101410.0,0.039491]
[1737423955980,0.41439563,101440.0,101420.0,0.039489]
[1737423956281,0.41439463,101440.0,101410.0,0.49563187]
[1737423956480,0.41439463,101440.0,101410.0,0.53512387]
[1737423956873,0.3608,101430.0,101410.0,0.53512387]
[1737423957069,0.00147966,101440.0,101410.0,0.49563187]
[1737423957269,0.2594,101450.0,101430.0,0.039484]
[1737423957674,0.3608,101460.0,101430.0,0.17431587]
[1737423957876,0.3608,101460.0,101430.0,0.13483187]
[1737423958080,0.039475,101460.0,101430.0,0.400284]
[1737423958381,0.3608,101480.0,101450.0,0.49563187]
[1737423958680,1.24224211,101490.0,101460.0,0.400273]
[1737423958888,1.25411215,101490.0,101460.0,0.400273]
[1737423959183,0.0014791,101490.0,101480.0,0.039466]
[1737423959586,0.1,101500.0,101490.0,0.039465]
[1737423959778,0.1,101500.0,101490.0,0.53509687]
[1737423959975,0.1,101500.0,101490.0,0.400265]
[1737423960778,0.1,101500.0,101490.0,0.53509687]
[1737423961083,0.06060593,101500.0,101490.0,0.93362389]
[1737423961286,0.3608,101530.0,101510.0,0.039454]
[1737423961587,0.400249,101530.0,101510.0,0.400254]
[1737423962086,0.3608,101530.0,101490.0,0.49563187]
[1737423962386,0.400245,101540.0,101520.0,0.3608]
[1737423962881,0.3608,101530.0,101510.0,0.3608]
[1737423963088,0.400251,101530.0,101490.0,0.53509387]
[1737423963290,0.039452,101520.0,101490.0,0.53509387]
[1737423963475,0.3608,101540.0,101520.0,0.039452]
[1737423963681,0.04147802,101560.0,101540.0,0.039443]
[1737423964187,0.04147802,101560.0,101550.0,0.13483187]
[1737423964777,0.04147802,101560.0,101530.0,0.49563187]
[1737423964778,0.40227802,101560.0,101530.0,0.49563187]
[1737423964974,0.08091502,101560.0,101530.0,0.400246]
[1737423965190,0.039448,101530.0,101510.0,0.3608]
[1737423965385,1.1909,101550.0,101520.0,0.13483187]
[1737423965686,0.93,101550.0,101540.0,0.13483187]
[1737423965984,0.039446,101540.0,101510.0,0.3608]
[1737423966185,0.93,101550.0,101520.0,0.13483187]
[1737423966386,0.93,101550.0,101520.0,0.3608]
[1737423966577,0.93,101550.0,101510.0,0.59411037]
[1737423966578,0.3608,101530.0,101510.0,0.59411037]
[1737423966776,1.54000501,101540.0,101510.0,0.53508587]
[1737423966973,1.539445,101540.0,101510.0,0.53508587]
[1737423967388,1.5,101540.0,101520.0,0.039452]
[1737423967578,0.5692,101550.0,101530.0,0.17427987]
[1737423967984,0.5692,101550.0,101530.0,0.53507987]
[1737423968283,0.5692,101550.0,101540.0,0.3608]
[1737423968687,0.04147802,101560.0,101540.0,0.3608]
[1737423968880,0.04147802,101560.0,101550.0,0.13483187]
[1737423969083,0.04147802,101560.0,101550.0,0.17427187]
[1737423969786,0.04147802,101560.0,101550.0,0.53507187]
[1737423970574,0.04147802,101560.0,101550.0,0.13483187]
[1737423970779,0.44171602,101560.0,101540.0,0.039444]
[1737423971177,0.44171602,101560.0,101530.0,0.13483187]
[1737423971491,0.40024,101550.0,101530.0,0.17427987]
[1737423971688,0.03944,101550.0,101530.0,0.17427987]
[1737423972080,0.40024,101550.0,101520.0,0.49563187]
[1737423972283,0.40024,101550.0,101520.0,0.53508387]
[1737423972790,0.3608,101550.0,101540.0,0.13483187]
[1737423972996,0.039433,101570.0,101540.0,0.53507387]
[1737423973198,0.039433,101570.0,101560.0,0.04]
[1737423974289,1.23401808,101580.0,101560.0,0.17483187]
[1737423975793,0.3608,101570.0,101560.0,0.17483187]
[1737423975989,0.400233,101570.0,101560.0,0.17483187]
[1737423976798,0.400233,101570.0,101560.0,0.04]
[1737423977493,0.039443,101550.0,101520.0,0.17428387]
[1737423977684,0.400251,101530.0,101510.0,0.3608]
[1737423977998,0.039456,101510.0,101500.0,0.13630963]
[1737423978202,0.400256,101510.0,101500.0,0.00147776]
[1737423978396,0.400256,101510.0,101490.0,0.28832908]
[1737423978591,0.40026,101500.0,101490.0,0.28832908]
[1737423979102,0.039464,101490.0,101480.0,0.35108771]
[1737423979399,0.682064,101490.0,101480.0,0.35108771]
[1737423979589,0.039468,101480.0,101470.0,0.0001103]
[1737423979790,0.039475,101470.0,101450.0,0.46962313]
[1737423979985,0.3608,101460.0,101450.0,0.46962313]
[1737423980194,0.400276,101460.0,101450.0,0.46962313]
[1737423980995,0.400276,101460.0,101440.0,0.55149148]
[1737423980996,0.03948,101450.0,101440.0,0.55149148]
[1737423981294,0.40028,101450.0,101440.0,0.55149148]
[1737423981501,0.70028,101450.0,101440.0,0.55149148]
[1737423981704,0.039484,101440.0,101430.0,0.41163372]
[1737423981887,0.400284,101440.0,101430.0,0.41163372]
[1737423982603,0.039487,101430.0,101420.0,0.69660893]
[1737423982790,0.400284,101440.0,101420.0,0.8314408]
[1737423982993,0.3608,101440.0,101420.0,0.69660893]
[1737423983396,0.05100863,101450.0,101420.0,0.73609993]
[1737423983593,0.41180863,101450.0,101420.0,0.73609993]
[1737423983798,0.05100863,101450.0,101420.0,0.039491]
[1737423983998,0.3608,101450.0,101430.0,0.13483187]
[1737423984309,0.40028,101450.0,101430.0,0.17431887]
[1737423984602,0.00147953,101460.0,101440.0,0.039482]
[1737423984802,0.00147953,101460.0,101450.0,0.13483187]
[1737423984998,0.00147953,101460.0,101450.0,0.53511187]
[1737423985393,0.40231754,101490.0,101470.0,0.039472]
[1737423985595,0.00205254,101490.0,101480.0,0.400268]
[1737423985793,0.36285254,101490.0,101470.0,0.49563187]
[1737423985999,0.40231754,101490.0,101470.0,0.49563187]
[1737423987004,0.04151754,101490.0,101470.0,0.49563187]
[1737423987196,0.04151754,101490.0,101460.0,0.690772]
[1737423987794,0.04151754,101490.0,101470.0,0.13483187]
[1737423988603,0.00205254,101490.0,101480.0,0.400268]
[1737423988804,0.0005735,101490.0,101480.0,0.400268]
[1737423990302,0.0005735,101490.0,101480.0,0.3608]
[1737423990893,0.0400375,101490.0,101480.0,0.3608]
[1737423991095,0.0005735,101490.0,101480.0,0.3608]
[1737423992704,0.0005735,101490.0,101470.0,0.54654283]
[1737423993104,0.11620399,101510.0,101480.0,0.3608]
[1737423993300,0.11620399,101510.0,101500.0,0.40026]
[1737423993903,0.15565999,101510.0,101500.0,0.3608]
[1737423994498,0.03946,101500.0,101490.0,0.636]
[1737423994698,0.03946,101500.0,101490.0,0.3608]
[1737423995299,0.03946,101500.0,101470.0,0.54654283]
[1737423995499,0.03946,101500.0,101470.0,0.60138976]
[1737423998200,0.11620399,101510.0,101490.0,0.49563187]
[1737423998405,0.04218796,101510.0,101490.0,0.53509587]
[1737423998707,0.04218796,101510.0,101500.0,0.3608]
[1737423999409,0.04218796,101500.0,101490.0,0.80109587]
[1737423999600,0.14525498,101510.0,101490.0,0.80109587]
[1737423999811,0.14525498,101510.0,101490.0,0.44029587]
[1737424000011,0.18471198,101510.0,101490.0,0.44029587]
[1737424000203,0.18471198,101510.0,101490.0,0.80109587]
[1737424000510,0.17430598,101520.0,101490.0,0.80109587]
[1737424000816,0.17430598,101520.0,101510.0,0.53508787]
[1737424001109,0.17430598,101520.0,101510.0,0.17428787]
[1737424001311,0.00147835,101540.0,101510.0,0.49563187]
[1737424001519,0.60244004,101550.0,101530.0,0.53508087]
[1737424001716,0.60244004,101550.0,101530.0,0.3608]
[1737424001912,0.039449,101530.0,101510.0,0.17428787]
[1737424002112,0.3608,101540.0,101500.0,0.40026]
[1737424002113,0.039452,101520.0,101500.0,0.40026]
[1737424002313,0.039452,101520.0,101500.0,0.3608]
[1737424002914,0.039456,101510.0,101490.0,0.82769487]
[1737424003118,0.3608,101520.0,101490.0,0.82769487]
[1737424003119,0.3608,101520.0,101490.0,0.3608]
[1737424003415,0.40026,101500.0,101480.0,0.62957792]
[1737424003618,0.039464,101490.0,101480.0,0.62957792]
[1737424003824,0.400264,101490.0,101470.0,9.625e-05]
[1737424004009,0.400264,101490.0,101450.0,0.3608]
[1737424004010,0.039473,101470.0,101450.0,0.3608]
[1737424004211,0.400273,101470.0,101450.0,0.3608]
[1737424004409,0.400273,101470.0,101450.0,0.49563187]
[1737424004714,0.400273,101470.0,101440.0,0.00147849]
[1737424004715,0.03948,101450.0,101440.0,0.00147849]
[1737424004921,0.039487,101430.0,101420.0,0.4080474]
[1737424005120,0.4003767,101430.0,101420.0,0.4080474]
[1737424005416,0.400287,101430.0,101420.0,0.4080474]
[1737424006217,0.40038325,101430.0,101420.0,0.4080474]
[1737424006516,0.039491,101420.0,101410.0,0.35051271]
[1737424006722,0.400291,101420.0,101400.0,0.1]
[1737424006920,0.36088456,101410.0,101400.0,0.1]
[1737424007222,0.40037956,101410.0,101400.0,0.1]
[1737424007745,0.36088456,101410.0,101400.0,0.1]
[1737424007921,8.456e-05,101410.0,101400.0,0.1]
[1737424008224,8.456e-05,101410.0,101400.0,0.500299]
[1737424009020,0.400285,101440.0,101400.0,0.500299]
[1737424009219,0.36227974,101450.0,101430.0,0.400287]
[1737424009412,0.37404844,101450.0,101430.0,0.039487]
[1737424009725,0.00147974,101450.0,101440.0,0.13483187]
[1737424009919,0.00147974,101450.0,101440.0,0.53511587]
[1737424010128,0.3608,101470.0,101450.0,0.039479]
[1737424010424,0.400274,101470.0,101440.0,0.53511587]
[1737424010619,0.400274,101470.0,101450.0,0.3608]
[1737424010927,0.41178424,101470.0,101440.0,0.53511587]
[1737424012027,0.37231024,101470.0,101450.0,0.400279]
[1737424012738,0.039483,101450.0,101420.0,1.09332287]
[1737424012938,0.039484,101440.0,101420.0,1.05383187]
[1737424013140,0.039484,101440.0,101420.0,0.6337]
[1737424013541,0.039484,101440.0,101420.0,0.2729]
[1737424013934,0.039484,101440.0,101420.0,0.40773187]
[1737424014336,0.3608,101450.0,101420.0,0.80802187]
[1737424014531,0.40028,101450.0,101420.0,0.44722187]
[1737424014928,0.37231024,101470.0,101440.0,0.13483187]
[1737424015226,0.37231024,101470.0,101430.0,0.3608]
[1737424015434,0.40028,101450.0,101430.0,0.3608]
[1737424015629,0.3608,101450.0,101430.0,0.400287]
[1737424017139,0.3608,101450.0,101430.0,0.039487]
[1737424018443,0.400276,101460.0,101430.0,0.039487]
[1737424018638,0.41151391,101460.0,101430.0,0.039487]
[1737424019141,0.400282,101450.0,101420.0,0.76853187]
[1737424019343,0.039484,101440.0,101420.0,0.76853187]
[1737424019545,0.039489,101430.0,101410.0,0.78481079]
[1737424019939,0.039489,101430.0,101410.0,0.64997892]
[1737424020137,0.3608,101440.0,101420.0,0.13483187]
[1737424020338,0.400284,101450.0,101420.0,0.17432287]
[1737424020947,0.400284,101450.0,101420.0,0.53512287]
[1737424021340,0.039487,101440.0,101420.0,0.3608]
[1737424021545,0.03949,101430.0,101410.0,0.28917892]
[1737424022347,0.761092,101420.0,101410.0,0.00147892]
[1737424022543,0.039496,101410.0,101400.0,0.1]
[1737424022748,0.400296,101410.0,101400.0,0.05783356]
[1737424023044,0.039504,101390.0,101370.0,0.2670067]
[1737424023253,0.400307,101380.0,101370.0,0.2670067]
[1737424023434,0.400307,101380.0,101370.0,0.0001067]
[1737424023640,0.761107,101380.0,101370.0,0.0001067]
[1737424024642,0.77253758,101380.0,101370.0,0.0001067]
[1737424025042,0.77253758,101380.0,101350.0,0.29456123]
[1737424025043,0.039515,101360.0,101350.0,0.29456123]
[1737424025348,0.400315,101360.0,101350.0,0.29456123]
[1737424025945,0.400315,101360.0,101350.0,0.29308146]
[1737424026154,0.039519,101350.0,101340.0,0.34141337]
[1737424026449,0.400319,101350.0,101340.0,0.34141337]
[1737424027145,0.039532,101320.0,101300.0,0.46139485]
[1737424027337,0.400332,101320.0,101300.0,0.46087485]
[1737424028047,0.400335,101310.0,101300.0,0.10007485]
[1737424029846,0.83516687,101310.0,101270.0,0.01165135]
[1737424030045,0.3608,101280.0,101250.0,0.3608]
[1737424030251,0.400353,101270.0,101250.0,0.3608]
[1737424030651,0.400353,101270.0,101250.0,0.38553038]
[1737424031147,0.3608,101260.0,101250.0,0.02473038]
[1737424032354,0.400353,101270.0,101250.0,0.02473038]
[1737424032539,0.3608,101290.0,101260.0,0.49563187]
[1737424032744,0.039547,101280.0,101250.0,0.55991925]
[1737424032945,0.08682303,101260.0,101250.0,0.52036225]
[1737424033147,0.08682303,101260.0,101250.0,0.13483187]
[1737424033443,0.08682303,101260.0,101250.0,0.49563187]
[1737424033645,0.08682303,101260.0,101250.0,0.53518887]
[1737424034045,0.01263655,101260.0,101240.0,0.91172]
[1737424034241,0.05219155,101260.0,101240.0,0.9112]
[1737424034650,0.50550505,101270.0,101240.0,0.9112]
[1737424034651,0.41298655,101270.0,101240.0,0.950761]
[1737424034848,0.41298655,101270.0,101240.0,0.589961]
[1737424035642,0.41298655,101270.0,101240.0,0.38223462]
[1737424036154,0.41298655,101270.0,101250.0,0.17438787]
[1737424036155,0.01263655,101270.0,101250.0,0.17438787]
[1737424036748,0.01263655,101270.0,101260.0,0.3608]
[1737424037254,0.15611364,101290.0,101260.0,0.3608]
[1737424037459,0.15611364,101290.0,101270.0,0.17437987]
[1737424037657,0.19565564,101290.0,101270.0,0.17437987]
[1737424038050,0.3608,101280.0,101250.0,0.49563187]
[1737424038255,0.039551,101270.0,101240.0,0.74303362]
[1737424038449,0.039551,101270.0,101240.0,0.38223362]
[1737424038642,0.400351,101270.0,101240.0,0.38223362]
[1737424038848,0.039551,101270.0,101240.0,0.23384386]
[1737424039050,0.039554,101260.0,101240.0,0.19428386]
[1737424039253,0.400354,101260.0,101240.0,0.19428386]
[1737424039552,0.40035,101270.0,101240.0,0.59464386]
[1737424039955,0.039554,101260.0,101230.0,0.50696319]
[1737424040158,0.039554,101260.0,101240.0,0.039561]
[1737424041054,0.039561,101240.0,101230.0,9.301e-05]
[1737424041256,0.400361,101240.0,101230.0,9.301e-05]
[1737424041755,0.039561,101240.0,101230.0,9.301e-05]
[1737424042056,0.400355,101260.0,101230.0,0.40045701]
[1737424042759,0.400355,101260.0,101230.0,0.03965701]
[1737424043663,0.400355,101260.0,101230.0,0.06439172]
[1737424043963,0.400355,101260.0,101230.0,0.42519172]
[1737424044159,0.37149647,101270.0,101240.0,0.17439087]
[1737424044348,0.37149647,101270.0,101240.0,0.49563187]
[1737424044549,0.039556,101260.0,101240.0,0.02473471]
[1737424044859,0.400356,101260.0,101240.0,0.02473471]
[1737424045055,0.039557,101250.0,101240.0,0.02473471]
[1737424045455,0.37149647,101270.0,101240.0,0.19912758]
[1737424045456,0.039555,101260.0,101240.0,0.19912758]
[1737424045859,0.039555,101260.0,101240.0,0.55992758]
[1737424046157,0.039555,101260.0,101240.0,0.19912758]
[1737424046461,0.41104647,101270.0,101250.0,0.039557]
[1737424047063,0.41104647,101270.0,101250.0,0.06429171]